fUST/lending_fUST_20250302
["ID","MTS","AMOUNT","RATE_DAILY","PERIOD"]
[355043481,1740880253671,-500.0,0.00024931,2]
[355043482,1740880253680,-500.0,0.00024931,2]
[355043483,1740880253689,-500.0,0.00024931,2]
[355043484,1740880253698,-758.85,0.00024931,2]
[355043485,1740880253707,-1461.59,0.00024931,2]
[355043486,1740880253717,-500.0,0.00024931,2]
[355043487,1740880253727,-500.0,0.00024931,2]
[355043488,1740880253736,-500.0,0.00024931,2]
[355043489,1740880253746,-500.0,0.00024931,2]
[355043490,1740880253755,-500.0,0.00024931,2]
[355043491,1740880253764,-514.26244761,0.00024931,2]
[355043492,1740880253774,-500.0,0.00024931,2]
[355043493,1740880253783,-500.0,0.00024931,2]
[355043494,1740880253794,-504.70079488,0.00024931,2]
[355043495,1740880253803,-500.0,0.00024931,2]
[355043496,1740880253814,-500.0,0.00024931,2]
[355043497,1740880253823,-500.0,0.00024931,2]
[355043498,1740880253833,-1384.13,0.00024931,2]
[355043499,1740880253843,-500.0,0.00024931,2]
[355043500,1740880253853,-500.0,0.00024931,2]
[355043501,1740880253862,-500.0,0.00024931,2]
[355043502,1740880253872,-500.0,0.00024931,2]
[355043503,1740880253881,-500.0,0.00024931,2]
[355043504,1740880253891,-674.15,0.00024931,2]
[355043505,1740880253901,-500.0,0.00024931,2]
[355043506,1740880253911,-500.0,0.00024931,2]
[355043507,1740880253920,-500.0,0.00024931,2]
[355043508,1740880253930,-500.0,0.00024931,2]
[355043509,1740880253939,-3195.55,0.00024931,2]
[355043510,1740880253949,-503.50391926,0.00024931,2]
[355043511,1740880253959,-500.0,0.00024931,2]
[355043512,1740880253969,-500.0,0.00024931,2]
[355043513,1740880253980,-500.0,0.00024931,2]
[355043514,1740880253989,-500.0,0.00024931,2]
[355043515,1740880253999,-500.0,0.00024931,2]
[355043516,1740880254009,-1047.61,0.00024931,2]
[355043517,1740880254018,-1000.0,0.00024931,2]
[355043518,1740880254028,-500.0,0.00024931,2]
[355043519,1740880254038,-500.0,0.00024931,2]
[355043520,1740880254047,-614.99,0.00024931,2]
[355043521,1740880254058,-1198.93,0.00024931,2]
[355043522,1740880254068,-500.0,0.00024931,2]
[355043523,1740880254078,-553.7,0.00024931,2]
[355043524,1740880254087,-500.0,0.00024931,2]
[355043525,1740880254097,-500.0,0.00024931,2]
[355043526,1740880254107,-591.09,0.00024931,2]
[355043527,1740880254116,-2175.84,0.00024931,2]
[355043528,1740880254125,-500.0,0.00024931,2]
[355043529,1740880254135,-500.0,0.00024931,2]
[355043530,1740880254148,-500.0,0.00024931,2]
[355043531,1740880254158,-2268.39,0.00024931,2]
[355043532,1740880254167,-500.0,0.00024931,2]
[355043533,1740880254177,-524.51,0.00024931,2]
[355043534,1740880254186,-500.0,0.00024931,2]
[355043535,1740880254196,-500.0,0.00024931,2]
[355043536,1740880254206,-500.0,0.00024931,2]
[355043537,1740880254215,-500.0,0.00024931,2]
[355043538,1740880254225,-507.36085195,0.00024931,2]
[355043539,1740880254234,-500.0,0.00024931,2]
[355043540,1740880254243,-500.0,0.00024931,2]
[355043541,1740880254254,-500.0,0.00024931,2]
[355043542,1740880254263,-500.0,0.00024931,2]
[355043543,1740880254273,-2076.54,0.00024931,2]
[355043544,1740880254283,-507.27980415,0.00024931,2]
[355043545,1740880254293,-1420.81,0.00024931,2]
[355043546,1740880254302,-500.0,0.00024931,2]
[355043547,1740880254311,-500.0,0.00024931,2]
[355043548,1740880254321,-500.51,0.00024931,2]
[355043549,1740880254330,-521.17,0.00024931,2]
[355043550,1740880254339,-928.01,0.00024931,2]
[355043551,1740880254349,-2706.92,0.00024931,2]
[355043552,1740880254359,-687.64,0.00024931,2]
[355043553,1740880254368,-752.72,0.00024931,2]
[355043554,1740880254378,-500.0,0.00024931,2]
[355043555,1740880254388,-1471.54,0.00024931,2]
[355043556,1740880254397,-500.0,0.00024931,2]
[355043557,1740880254408,-500.0,0.00024931,2]
[355043558,1740880254418,-500.0,0.00024931,2]
[355043559,1740880254427,-500.0,0.00024931,2]
[355043560,1740880254436,-500.0,0.00024931,2]
[355043561,1740880254445,-546.87,0.00024931,2]
[355043562,1740880254531,-500.0,0.00024931,2]
[355043563,1740880254541,-1392.2,0.00024931,2]
[355043564,1740880254550,-500.0,0.00024931,2]
[355043565,1740880254560,-1000.0,0.00024931,2]
[355043566,1740880254569,-502.60772376,0.00024931,2]
[355043567,1740880254578,-502.22450682,0.00024931,2]
[355043568,1740880254587,-500.0,0.00024931,2]
[355043569,1740880254597,-500.0,0.00024931,2]
[355043570,1740880254607,-500.0,0.00024931,2]
[355043571,1740880254617,-500.0,0.00024931,2]
[355043572,1740880254626,-500.0,0.00024931,2]
[355043573,1740880254636,-579.3723077,0.00024931,2]
[355043574,1740880254645,-570.56240796,0.00024931,2]
[355043575,1740880254654,-1223.59,0.00024931,2]
[355043576,1740880254663,-500.0,0.00024931,2]
[355043577,1740880254672,-500.0,0.00024931,2]
[355043578,1740880254682,-500.0,0.00024931,2]
[355043579,1740880254692,-500.0,0.00024931,2]
[355043580,1740880254701,-1131.99,0.00024931,2]
[355043581,1740880254710,-546.98,0.00024931,2]
[355043582,1740880254720,-500.0,0.00024931,2]
[355043583,1740880254729,-500.0,0.00024931,2]
[355043584,1740880254738,-723.26,0.00024931,2]
[355043585,1740880254747,-1168.03,0.00024931,2]
[355043586,1740880254757,-548.67,0.00024931,2]
[355043587,1740880254766,-275.79247018,0.00024931,2]
[355043588,1740880254775,-504.62249416,0.00024931,2]
[355043589,1740880254785,-500.0,0.00024931,2]
[355043590,1740880254794,-500.0,0.00024931,2]
[355043591,1740880254804,-500.0,0.00024931,2]
[355043592,1740880254813,-501.74083165,0.00024931,2]
[355043593,1740880254823,-500.0,0.00024931,2]
[355043594,1740880254832,-500.0,0.00024931,2]
[355043595,1740880254842,-504.12596265,0.00024931,2]
[355043596,1740880254851,-500.0,0.00024931,2]
[355043597,1740880254861,-500.0,0.00024931,2]
[355043598,1740880254871,-3044.28,0.00024931,2]
[355043599,1740880254880,-500.0,0.00024931,2]
[355043600,1740880254889,-500.0,0.00024931,2]
[355043601,1740880254898,-583.22,0.00024931,2]
[355043602,1740880254907,-500.0,0.00024931,2]
[355043603,1740880254917,-500.0,0.00024931,2]
[355043604,1740880254926,-1031.55,0.00024931,2]
[355043605,1740880254935,-500.0,0.00024931,2]
[355043606,1740880254945,-500.0,0.00024931,2]
[355043607,1740880254954,-500.0,0.00024931,2]
[355043608,1740880254963,-500.0,0.00024931,2]
[355043609,1740880254974,-500.0,0.00024931,2]
[355043610,1740880254983,-500.0,0.00024931,2]
[355043611,1740880254993,-508.68432404,0.00024931,2]
[355043612,1740880255003,-500.0,0.00024931,2]
[355043613,1740880255012,-500.0,0.00024931,2]
[355043614,1740880255022,-531.7,0.00024931,2]
[355043615,1740880255031,-500.0,0.00024931,2]
[355043616,1740880255040,-1257.16,0.00024931,2]
[355043617,1740880255050,-500.0,0.00024931,2]
[355043618,1740880255059,-500.0,0.00024931,2]
[355043619,1740880255068,-500.0,0.00024931,2]
[355043620,1740880255078,-501.85918538,0.00024931,2]
[355043621,1740880255087,-523.80039163,0.00024931,2]
[355043622,1740880255096,-1834.8,0.00024931,2]
[355043623,1740880255106,-500.0,0.00024931,2]
[355043624,1740880255115,-500.0,0.00024931,2]
[355043625,1740880255124,-500.0,0.00024931,2]
[355043626,1740880255136,-500.0,0.00024931,2]
[355043627,1740880255151,-500.0,0.00024931,2]
[355043628,1740880255161,-500.0,0.00024931,2]
[355043629,1740880255170,-500.0,0.00024931,2]
[355043630,1740880255180,-930.89,0.00024931,2]
[355043631,1740880255190,-500.0,0.00024931,2]
[355043632,1740880255199,-500.0,0.00024931,2]
[355043633,1740880255209,-500.0,0.00024931,2]
[355043634,1740880255219,-919.06,0.00024931,2]
[355043635,1740880255228,-1076.72,0.00024931,2]
[355043636,1740880255238,-500.0,0.00024931,2]
[355043637,1740880255247,-500.0,0.00024931,2]
[355043638,1740880255256,-500.0,0.00024931,2]
[355043639,1740880255265,-500.0,0.00024931,2]
[355043640,1740880255275,-500.0,0.00024931,2]
[355043641,1740880255283,-500.0,0.00024931,2]
[355043642,1740880255293,-184.73546345,0.00024931,2]
[355043643,1740880255302,-1069.63,0.00024931,2]
[355043644,1740880255311,-500.0,0.00024931,2]
[355043645,1740880255320,-602.99,0.00024931,2]
[355043646,1740880255329,-500.0,0.00024931,2]
[355043647,1740880255339,-500.0,0.00024931,2]
[355043648,1740880255348,-636.00143111,0.00024931,2]
[355043649,1740880255357,-500.0,0.00024931,2]
[355043650,1740880255367,-1066.49,0.00024931,2]
[355043651,1740880255376,-5283.31,0.00024931,2]
[355043652,1740880255386,-516.89,0.00024931,2]
[355043653,1740880255396,-1004.76,0.00024931,2]
[355043654,1740880255405,-500.0,0.00024931,2]
[355043655,1740880255415,-500.0,0.00024931,2]
[355043656,1740880255424,-500.0,0.00024931,2]
[355043657,1740880255434,-2661.42,0.00024931,2]
[355043658,1740880255443,-500.0,0.00024931,2]
[355043659,1740880255453,-252.24944188,0.00024931,2]
[355043660,1740880255463,-500.0,0.00024931,2]
[355043661,1740880255472,-500.0,0.00024931,2]
[355043662,1740880255481,-500.0,0.00024931,2]
[355043663,1740880255491,-500.0,0.00024931,2]
[355043664,1740880255500,-617.73,0.00024931,2]
[355043665,1740880255509,-954.7,0.00024931,2]
[355043666,1740880255519,-791.56,0.00024931,2]
[355043667,1740880255528,-500.0,0.00024931,2]
[355043668,1740880255537,-500.0,0.00024931,2]
[355043669,1740880255546,-500.0,0.00024931,2]
[355043670,1740880255555,-500.0,0.00024931,2]
[355043671,1740880255564,-500.0,0.00024931,2]
[355043672,1740880255573,-500.0,0.00024931,2]
[355043673,1740880255582,-1320.98,0.00024931,2]
[355043674,1740880255591,-500.0,0.00024931,2]
[355043675,1740880255601,-500.0,0.00024931,2]
[355043676,1740880255611,-500.0,0.00024931,2]
[355043677,1740880255620,-2209.87,0.00024931,2]
[355043678,1740880255629,-500.0,0.00024931,2]
[355043679,1740880255639,-500.0,0.00024931,2]
[355043680,1740880255648,-12127.47,0.00024931,2]
[355043681,1740880255657,-151.89046714,0.00024931,2]
[355043682,1740880255666,-500.0,0.00024931,2]
[355043683,1740880255676,-500.03,0.00024931,2]
[355043684,1740880255685,-200.0,0.00024931,2]
[355043685,1740880255695,-500.0,0.00024931,2]
[355043686,1740880255705,-500.0,0.00024931,2]
[355043687,1740880255715,-500.0,0.00024931,2]
[355043688,1740880255730,-714.71,0.00024931,2]
[355043689,1740880255740,-500.0,0.00024931,2]
[355043690,1740880255749,-500.0,0.00024931,2]
[355043691,1740880255759,-507.62488777,0.00024931,2]
[355043692,1740880255768,-500.0,0.00024931,2]
[355043693,1740880255778,-500.0,0.00024931,2]
[355043694,1740880255788,-500.0,0.00024931,2]
[355043695,1740880255797,-912.13,0.00024931,2]
[355043696,1740880255807,-500.0,0.00024931,2]
[355043697,1740880255816,-866.0,0.00024931,2]
[355043698,1740880255826,-500.0,0.00024931,2]
[355043699,1740880255835,-1259.84,0.00024931,2]
[355043700,1740880255845,-500.0,0.00024931,2]
[355043701,1740880255854,-500.0,0.00024931,2]
[355043702,1740880255865,-500.0,0.00024931,2]
[355043703,1740880255878,-237257.16,0.00024931,2]
[355043704,1740880255888,-500.0,0.00024931,2]
[355043705,1740880255898,-533.74,0.00024931,2]
[355043706,1740880255907,-2799.02,0.00024931,2]
[355043707,1740880255917,-500.0,0.00024931,2]
[355043708,1740880255926,-3275.34,0.00024931,2]
[355043709,1740880255936,-1622.45,0.00024931,2]
[355043710,1740880255945,-1389.7,0.00024931,2]
[355043711,1740880255955,-500.0,0.00024931,2]
[355043712,1740880255964,-500.0,0.00024931,2]
[355043713,1740880255974,-500.0,0.00024931,2]
[355043714,1740880255983,-510.58689261,0.00024931,2]
[355043715,1740880255993,-500.0,0.00024931,2]
[355043716,1740880256002,-500.0,0.00024931,2]
[355043717,1740880256011,-500.0,0.00024931,2]
[355043718,1740880256021,-2526.74,0.00024931,2]
[355043719,1740880256030,-703.97,0.00024931,2]
[355043720,1740880256040,-500.0,0.00024931,2]
[355043721,1740880256050,-500.0,0.00024931,2]
[355043722,1740880256060,-500.0,0.00024931,2]
[355043723,1740880256070,-500.0,0.00024931,2]
[355043724,1740880256080,-500.0,0.00024931,2]
[355043725,1740880256090,-1718.1,0.00024931,2]
[355043726,1740880256099,-500.0,0.00024931,2]
[355043727,1740880256109,-500.0,0.00024931,2]
[355043728,1740880256119,-500.0,0.00024931,2]
[355043729,1740880256128,-500.0,0.00024931,2]
[355043730,1740880256139,-500.0,0.00024931,2]
[355043731,1740880256149,-1801.15,0.00024931,2]
[355043732,1740880256159,-500.0,0.00024931,2]
[355043733,1740880256168,-500.0,0.00024931,2]
[355043734,1740880256177,-554.19015028,0.00024931,2]
[355043735,1740880256187,-4941.89,0.00024931,2]
[355043736,1740880256197,-506.02269218,0.00024931,2]
[355043737,1740880256207,-500.0,0.00024931,2]
[355043738,1740880256216,-500.0,0.00024931,2]
[355043739,1740880256225,-500.0,0.00024931,2]
[355043740,1740880256234,-860.85,0.00024931,2]
[355043741,1740880256244,-500.0,0.00024931,2]
[355043742,1740880256253,-500.0,0.00024931,2]
[355043743,1740880256263,-1102.8,0.00024931,2]
[355043744,1740880256272,-500.0,0.00024931,2]
[355043745,1740880256282,-2226.47,0.00024931,2]
[355043746,1740880256291,-687.36,0.00024931,2]
[355043747,1740880256300,-508.38322203,0.00024931,2]
[355043748,1740880256310,-504.57784005,0.00024931,2]
[355043749,1740880256319,-500.0,0.00024931,2]
[355043750,1740880256329,-500.0,0.00024931,2]
[355043751,1740880256338,-2646.1,0.00024931,2]
[355043752,1740880256348,-500.0,0.00024931,2]
[355043753,1740880256357,-500.0,0.00024931,2]
[355043754,1740880256367,-500.0,0.00024931,2]
[355043755,1740880256376,-500.0,0.00024931,2]
[355043756,1740880256386,-1793.92,0.00024931,2]
[355043757,1740880256396,-500.0,0.00024931,2]
[355043758,1740880256406,-500.0,0.00024931,2]
[355043759,1740880256415,-500.0,0.00024931,2]
[355043760,1740880256425,-500.0,0.00024931,2]
[355043761,1740880256435,-500.0,0.00024931,2]
[355043762,1740880256444,-17596.01,0.00024931,2]
[355043763,1740880256454,-694.6,0.00024931,2]
[355043764,1740880256464,-504.78067994,0.00024931,2]
[355043765,1740880256473,-584.12983624,0.00024931,2]
[355043766,1740880256483,-506.82,0.00024931,2]
[355043767,1740880256493,-500.0,0.00024931,2]
[355043768,1740880256502,-780.03,0.00024931,2]
[355043769,1740880256513,-500.0,0.00024931,2]
[355043770,1740880256523,-5992.25,0.00024931,2]
[355043771,1740880256533,-500.0,0.00024931,2]
[355043772,1740880256543,-2325.18,0.00024931,2]
[355043773,1740880256554,-955.14,0.00024931,2]
[355043774,1740880256564,-503.72597087,0.00024931,2]
[355043775,1740880256575,-1232.16,0.00024931,2]
[355043776,1740880256584,-500.0,0.00024931,2]
[355043777,1740880256594,-500.0,0.00024931,2]
[355043778,1740880256605,-14411.32,0.00024931,2]
[355043779,1740880256615,-500.0,0.00024931,2]
[355043780,1740880256625,-500.0,0.00024931,2]
[355043781,1740880256635,-500.0,0.00024931,2]
[355043782,1740880256645,-504.7,0.00024931,2]
[355043783,1740880256655,-500.0,0.00024931,2]
[355043784,1740880256664,-325.86159838,0.00024931,2]
[355043785,1740880256674,-6090.67,0.00024931,2]
[355043786,1740880256684,-500.0,0.00024931,2]
[355043787,1740880256694,-500.0,0.00024931,2]
[355043788,1740880256704,-8908.64,0.00024931,2]
[355043789,1740880256714,-1018.64,0.00024931,2]
[355043790,1740880256724,-667.57,0.00024931,2]
[355043791,1740880256734,-1331.8,0.00024931,2]
[355043792,1740880256744,-500.0,0.00024931,2]
[355043793,1740880256754,-503.30164278,0.00024931,2]
[355043794,1740880256763,-500.0,0.00024931,2]
[355043795,1740880256774,-500.0,0.00024931,2]
[355043796,1740880256784,-513.99022164,0.00024931,2]
[355043797,1740880256794,-500.0,0.00024931,2]
[355043798,1740880256804,-500.0,0.00024931,2]
[355043799,1740880256814,-896.5,0.00024931,2]
[355043800,1740880256824,-623.08,0.00024931,2]
[355043801,1740880256834,-500.0,0.00024931,2]
[355043802,1740880256844,-500.0,0.00024931,2]
[355043803,1740880256854,-546.19604656,0.00024931,2]
[355043804,1740880256864,-500.0,0.00024931,2]
[355043805,1740880256874,-1406.67,0.00024931,2]
[355043806,1740880256884,-500.0,0.00024931,2]
[355043807,1740880256895,-5376.44,0.00024931,2]
[355043808,1740880256906,-500.0,0.00024931,2]
[355043809,1740880256916,-500.0,0.00024931,2]
[355043810,1740880256927,-500.0,0.00024931,2]
[355043811,1740880256937,-500.0,0.00024931,2]
[355043812,1740880256947,-501.34828217,0.00024931,2]
[355043813,1740880256956,-509.57012197,0.00024931,2]
[355043814,1740880256966,-1017.35,0.00024931,2]
[355043815,1740880256976,-546.12,0.00024931,2]
[355043816,1740880256986,-500.0,0.00024931,2]
[355043817,1740880256996,-500.0,0.00024931,2]
[355043818,1740880257007,-500.0,0.00024931,2]
[355043819,1740880257018,-505.68202986,0.00024931,2]
[355043820,1740880257028,-500.0,0.00024931,2]
[355043821,1740880257038,-500.0,0.00024931,2]
[355043822,1740880257049,-500.0,0.00024931,2]
[355043823,1740880257059,-665.17,0.00024931,2]
[355043824,1740880257069,-500.0,0.00024931,2]
[355043825,1740880257079,-1330.22,0.00024931,2]
[355043826,1740880257088,-500.0,0.00024931,2]
[355043827,1740880257098,-1436.12,0.00024931,5]
[355043828,1740880257109,-2218.12,0.00024931,2]
[355043829,1740880257118,-500.0,0.00024931,2]
[355043830,1740880257128,-503.58911786,0.00024931,2]
[355043831,1740880257138,-8022.97,0.00024931,2]
[355043832,1740880257149,-500.0,0.00024931,2]
[355043833,1740880257159,-930.58,0.00024931,2]
[355043834,1740880257169,-673.75,0.00024931,2]
[355043835,1740880257179,-404.30420021,0.00024931,2]
[355043836,1740880257189,-1207.39,0.00024931,2]
[355043837,1740880257199,-1714.76,0.00024931,2]
[355043838,1740880257209,-500.0,0.00024931,2]
[355043839,1740880257221,-500.0,0.00024931,2]
[355043840,1740880257231,-500.0,0.00024931,2]
[355043841,1740880257241,-500.0,0.00024931,2]
[355043842,1740880257251,-500.0,0.00024931,2]
[355043843,1740880257261,-500.0,0.00024931,2]
[355043844,1740880257271,-503.90213071,0.00024931,2]
[355043845,1740880257285,-500.0,0.00024931,2]
[355043846,1740880257295,-1788.59,0.00024931,2]
[355043847,1740880257305,-500.0,0.00024931,2]
[355043848,1740880257316,-500.0,0.00024931,2]
[355043849,1740880257326,-500.0,0.00024931,2]
[355043850,1740880257335,-2000.09,0.00024931,2]
[355043851,1740880257345,-1689.44,0.00024931,2]
[355043852,1740880257355,-912.93,0.00024931,2]
[355043853,1740880257364,-500.0,0.00024931,2]
[355043854,1740880257374,-500.0,0.00024931,2]
[355043855,1740880257383,-506.62545058,0.00024931,2]
[355043856,1740880257394,-500.0,0.00024931,2]
[355043857,1740880257404,-756.89,0.00024931,2]
[355043858,1740880257413,-500.0,0.00024931,2]
[355043859,1740880257423,-506.66156025,0.00024931,2]
[355043860,1740880257432,-1040.97,0.00024931,2]
[355043861,1740880257442,-585.74,0.00024931,2]
[355043862,1740880257452,-500.0,0.00024931,2]
[355043863,1740880257462,-500.0,0.00024931,2]
[355043864,1740880257472,-500.0,0.00024931,2]
[355043865,1740880257482,-500.0,0.00024931,2]
[355043866,1740880257492,-1881.14,0.00024931,2]
[355043867,1740880257502,-500.0,0.00024931,2]
[355043868,1740880257512,-500.0,0.00024931,2]
[355043869,1740880257522,-500.0,0.00024931,2]
[355043870,1740880257532,-543.29,0.00024931,2]
[355043871,1740880257542,-500.0,0.00024931,2]
[355043872,1740880257552,-1185.09,0.00024931,2]
[355043873,1740880257562,-3783.09,0.00024931,2]
[355043874,1740880257572,-500.0,0.00024931,2]
[355043875,1740880257582,-500.0,0.00024931,2]
[355043876,1740880257592,-941.56,0.00024931,2]
[355043877,1740880257603,-500.0,0.00024931,2]
[355043878,1740880257614,-4102.21,0.00024931,2]
[355043879,1740880257624,-500.0,0.00024931,2]
[355043880,1740880257634,-500.0,0.00024931,2]
[355043881,1740880257644,-2818.22,0.00024931,2]
[355043882,1740880257654,-500.0,0.00024931,2]
[355043883,1740880257663,-500.0,0.00024931,2]
[355043884,1740880257673,-500.0,0.00024931,2]
[355043885,1740880257683,-500.0,0.00024931,2]
[355043886,1740880257693,-7351.2,0.00024931,2]
[355043887,1740880257702,-16797.07,0.00024931,2]
[355043888,1740880257713,-500.0,0.00024931,2]
[355043889,1740880257723,-500.0,0.00024931,2]
[355043890,1740880257733,-500.0,0.00024931,2]
[355043891,1740880257742,-500.0,0.00024931,2]
[355043892,1740880257753,-500.0,0.00024931,2]
[355043893,1740880257763,-500.0,0.00024931,2]
[355043894,1740880257773,-500.0,0.00024931,2]
[355043895,1740880257783,-500.0,0.00024931,2]
[355043896,1740880257793,-500.0,0.00024931,2]
[355043897,1740880257803,-500.0,0.00024931,2]
[355043898,1740880257813,-500.0,0.00024931,2]
[355043899,1740880257823,-676.87,0.00024931,2]
[355043900,1740880257834,-2221.84,0.00024931,2]
[355043901,1740880257844,-1357.85,0.00024931,2]
[355043902,1740880257855,-500.0,0.00024931,2]
[355043903,1740880257867,-500.0,0.00024931,2]
[355043904,1740880257879,-508.4644925,0.00024931,2]
[355043905,1740880257890,-1013.5,0.00024931,2]
[355043906,1740880257900,-1851.45,0.00024931,2]
[355043907,1740880257910,-500.0,0.00024931,2]
[355043908,1740880257921,-1362.5,0.00024931,2]
[355043909,1740880257931,-500.0,0.00024931,2]
[355043910,1740880257942,-500.0,0.00024931,2]
[355043911,1740880257952,-500.0,0.00024931,2]
[355043912,1740880257962,-500.0,0.00024931,2]
[355043913,1740880257973,-500.0,0.00024931,2]
[355043914,1740880257983,-500.0,0.00024931,2]
[355043915,1740880257993,-500.0,0.00024931,2]
[355043916,1740880258003,-500.0,0.00024931,2]
[355043917,1740880258013,-500.0,0.00024931,2]
[355043918,1740880258024,-500.0,0.00024931,2]
[355043919,1740880258034,-500.0,0.00024931,2]
[355043920,1740880258044,-540.28552277,0.00024931,2]
[355043921,1740880258054,-500.0,0.00024931,2]
[355043922,1740880258065,-3865.73,0.00024931,2]
[355043923,1740880258075,-500.0,0.00024931,2]
[355043924,1740880258086,-500.0,0.00024931,2]
[355043925,1740880258096,-500.0,0.00024931,2]
[355043926,1740880258109,-500.0,0.00024931,2]
[355043927,1740880258120,-500.0,0.00024931,2]
[355043928,1740880258130,-500.0,0.00024931,2]
[355043929,1740880258141,-500.0,0.00024931,2]
[355043930,1740880258152,-664.86,0.00024931,2]
[355043931,1740880258167,-509.0,0.00024931,2]
[355043932,1740880258177,-471.57093837,0.00024931,2]
[355043933,1740880258187,-500.0,0.00024931,2]
[355043934,1740880258197,-500.0,0.00024931,2]
[355043935,1740880258207,-500.0,0.00024931,2]
[355043936,1740880258219,-500.0,0.00024931,2]
[355043937,1740880258230,-500.0,0.00024931,2]
[355043938,1740880258240,-500.0,0.00024931,2]
[355043939,1740880258251,-500.0,0.00024931,2]
[355043940,1740880258261,-1066.57,0.00024931,2]
[355043941,1740880258272,-571.98,0.00024931,2]
[355043942,1740880258282,-500.0,0.00024931,2]
[355043943,1740880258292,-501.85842214,0.00024931,2]
[355043944,1740880258302,-523.89389121,0.00024931,2]
[355043945,1740880258312,-500.0,0.00024931,2]
[355043946,1740880258322,-500.0,0.00024931,2]
[355043947,1740880258332,-500.0,0.00024931,2]
[355043948,1740880258343,-6933.61,0.00024931,2]
[355043949,1740880258354,-500.0,0.00024931,2]
[355043950,1740880258364,-696.3,0.00024931,2]
[355043951,1740880258374,-500.0,0.00024931,2]
[355043952,1740880258385,-500.0,0.00024931,2]
[355043953,1740880258395,-500.0,0.00024931,2]
[355043954,1740880258406,-500.0,0.00024931,2]
[355043955,1740880258417,-500.0,0.00024931,2]
[355043956,1740880258427,-500.0,0.00024931,2]
[355043957,1740880258437,-2023.15,0.00024931,2]
[355043958,1740880258447,-507.76775709,0.00024931,2]
[355043959,1740880258458,-500.0,0.00024931,2]
[355043960,1740880258468,-509.1,0.00024931,2]
[355043961,1740880258479,-500.0,0.00024931,2]
[355043962,1740880258489,-500.0,0.00024931,2]
[355043963,1740880258500,-500.0,0.00024931,2]
[355043964,1740880258510,-500.0,0.00024931,2]
[355043965,1740880258521,-870.92,0.00024931,2]
[355043966,1740880258532,-4360.33,0.00024931,2]
[355043967,1740880258542,-1997.6,0.00024931,2]
[355043968,1740880258553,-1484.64,0.00024931,2]
[355043969,1740880258563,-150.0,0.00024932,2]
[355043970,1740880258574,-500.0,0.00024973,2]
[355043971,1740880258584,-500.0,0.00024973,2]
[355043972,1740880258595,-500.0,0.00024973,2]
[355043973,1740880258605,-500.0,0.00024973,2]
[355043974,1740880258616,-150.89433719,0.00024973,2]
[355043975,1740880258627,-492.53721017,0.00024973,2]
[355043976,1740880258637,-384.68552977,0.00024973,2]
[355043977,1740880258648,-501.23668107,0.00024973,2]
[355043978,1740880258658,-500.0,0.00024973,2]
[355043979,1740880258668,-160.02919242,0.00024973,2]
[355043980,1740880258678,-504.4974225,0.00024973,2]